[Event "Titled Tuesday Blitz May 31 Late 2022"]
[White "Jones, Gawain C B"]
[Black "Taichman, Ori"]
[WhiteFideId "409561"]
[BlackFideId "2804069"]
[WhiteElo "2657"]
[BlackElo "2227"]
[Result "1/2-1/2"]
[Round "03"]
[TimeControl "180+1"]
[Date "2022.05.31"]
[WhiteClock "0:00:14"]
[BlackClock "0:00:11"]

1. Nf3 {[%clk 0:03:00]}  Nf6 {[%clk 0:02:59]} 2. g3 {[%clk 0:03:00]}  g6 {[%clk 0:03:00]} 3. Bg2 {[%clk 0:03:01]}  Bg7 {[%clk 0:03:00]} 4. b3 {[%clk 0:03:01]}  Ne4 {[%clk 0:02:51]} 5. d4 {[%clk 0:03:01]}  c5 {[%clk 0:02:52]} 6. Bb2 {[%clk 0:02:56]}  Qa5+ {[%clk 0:02:50]} 7. Nbd2 {[%clk 0:02:55]}  Nc3 {[%clk 0:02:46]} 8. Bxc3 {[%clk 0:02:31]}  Qxc3 {[%clk 0:02:47]} 9. e3 {[%clk 0:02:28]}  cxd4 {[%clk 0:02:44]} 10. exd4 {[%clk 0:02:21]}  Nc6 {[%clk 0:02:42]} 11. O-O {[%clk 0:02:14]}  Nxd4 {[%clk 0:02:42]} 12. Nxd4 {[%clk 0:02:12]}  Qxd4 {[%clk 0:02:42]} 13. Qe2 {[%clk 0:02:08]}  O-O {[%clk 0:02:18]} 14. Rad1 {[%clk 0:02:05]}  Qe5 {[%clk 0:01:57]} 15. Ne4 {[%clk 0:01:45]}  d6 {[%clk 0:01:42]} 16. Rfe1 {[%clk 0:01:40]}  Be6 {[%clk 0:01:38]} 17. c4 {[%clk 0:01:36]}  Rab8 {[%clk 0:01:37]} 18. Qd2 {[%clk 0:01:29]}  Bg4 {[%clk 0:01:13]} 19. f3 {[%clk 0:01:00]}  Bf5 {[%clk 0:01:12]} 20. f4 {[%clk 0:00:55]}  Qb2 {[%clk 0:01:08]} 21. Qa5 {[%clk 0:00:43]}  Bxe4 {[%clk 0:01:02]} 22. Rxe4 {[%clk 0:00:39]}  b6 {[%clk 0:00:55]} 23. Qd2 {[%clk 0:00:32]}  Qxd2 {[%clk 0:00:53]} 24. Rxd2 {[%clk 0:00:33]}  Bf6 {[%clk 0:00:53]} 25. g4 {[%clk 0:00:33]}  Rfe8 {[%clk 0:00:52]} 26. g5 {[%clk 0:00:32]}  Bc3 {[%clk 0:00:50]} 27. Rd3 {[%clk 0:00:32]}  Bb4 {[%clk 0:00:50]} 28. Re2 {[%clk 0:00:31]}  Rbc8 {[%clk 0:00:44]} 29. Kf2 {[%clk 0:00:30]}  Rc5 {[%clk 0:00:43]} 30. Kg3 {[%clk 0:00:27]}  Kf8 {[%clk 0:00:42]} 31. Rd5 {[%clk 0:00:20]}  Rec8 {[%clk 0:00:38]} 32. h4 {[%clk 0:00:20]}  Rxd5 {[%clk 0:00:32]} 33. Bxd5 {[%clk 0:00:20]}  e6 {[%clk 0:00:30]} 34. Bf3 {[%clk 0:00:20]}  Rc5 {[%clk 0:00:24]} 35. h5 {[%clk 0:00:20]}  Bc3 {[%clk 0:00:22]} 36. hxg6 {[%clk 0:00:18]}  hxg6 {[%clk 0:00:22]} 37. Be4 {[%clk 0:00:18]}  Ra5 {[%clk 0:00:21]} 38. Kf3 {[%clk 0:00:18]}  Ke7 {[%clk 0:00:21]} 39. Bb1 {[%clk 0:00:18]}  a6 {[%clk 0:00:19]} 40. Ke4 {[%clk 0:00:16]}  b5 {[%clk 0:00:18]} 41. Kd3 {[%clk 0:00:17]}  Bg7 {[%clk 0:00:17]} 42. Rc2 {[%clk 0:00:15]}  bxc4+ {[%clk 0:00:16]} 43. Rxc4 {[%clk 0:00:16]}  Rd5+ {[%clk 0:00:15]} 44. Ke2 {[%clk 0:00:16]}  Kd7 {[%clk 0:00:15]} 45. Bd3 {[%clk 0:00:15]}  Rd4 {[%clk 0:00:15]} 46. Rxd4 {[%clk 0:00:14]}  Bxd4 {[%clk 0:00:15]} 47. Bxa6 {[%clk 0:00:15]}  Bb2 {[%clk 0:00:16]} 48. Bb5+ {[%clk 0:00:15]}  Ke7 {[%clk 0:00:15]} 49. a4 {[%clk 0:00:14]}  Bc3 {[%clk 0:00:13]} 50. Kd3 {[%clk 0:00:14]}  Ba5 {[%clk 0:00:13]} 51. Kd4 {[%clk 0:00:13]}  Bb6+ {[%clk 0:00:10]} 52. Kd3 {[%clk 0:00:12]}  d5 {[%clk 0:00:10]} 53. b4 {[%clk 0:00:12]}  Bc7 {[%clk 0:00:10]} 54. Ke3 {[%clk 0:00:08]}  Bd6 {[%clk 0:00:10]} 55. a5 {[%clk 0:00:09]}  Bxb4 {[%clk 0:00:11]} 56. a6 {[%clk 0:00:09]}  Bc5+ {[%clk 0:00:11]} 57. Kf3 {[%clk 0:00:10]}  f6 {[%clk 0:00:09]} 58. gxf6+ {[%clk 0:00:08]}  Kxf6 {[%clk 0:00:10]} 59. Kg4 {[%clk 0:00:08]}  Be3 {[%clk 0:00:09]} 60. Bd3 {[%clk 0:00:08]}  Ba7 {[%clk 0:00:10]} 61. Bc2 {[%clk 0:00:07]}  Bc5 {[%clk 0:00:07]} 62. Bd3 {[%clk 0:00:07]}  Ba7 {[%clk 0:00:08]} 63. Bc2 {[%clk 0:00:08]}  Bb8 {[%clk 0:00:09]} 64. Bb1 {[%clk 0:00:08]}  Kf7 {[%clk 0:00:09]} 65. Kg5 {[%clk 0:00:08]}  Ba7 {[%clk 0:00:09]} 66. Bxg6+ {[%clk 0:00:08]}  Ke7 {[%clk 0:00:10]} 67. Bd3 {[%clk 0:00:08]}  Be3 {[%clk 0:00:09]} 68. Kg6 {[%clk 0:00:08]}  Kd6 {[%clk 0:00:09]} 69. Kf7 {[%clk 0:00:08]}  Kc7 {[%clk 0:00:07]} 70. Kxe6 {[%clk 0:00:09]}  Bxf4 {[%clk 0:00:08]} 71. Kxd5 {[%clk 0:00:09]}  Kb8 {[%clk 0:00:08]} 72. Kc6 {[%clk 0:00:09]}  Ka7 {[%clk 0:00:08]} 73. Kb5 {[%clk 0:00:10]}  Bd2 {[%clk 0:00:08]} 74. Be4 {[%clk 0:00:11]}  Be3 {[%clk 0:00:09]} 75. Bb7 {[%clk 0:00:12]}  Bb6 {[%clk 0:00:09]} 76. Bc6 {[%clk 0:00:13]}  Bf2 {[%clk 0:00:10]} 77. Bb7 {[%clk 0:00:14]}  Bb6 {[%clk 0:00:11]} 78. Bc6 {[%clk 0:00:14]}  Bf2 {[%clk 0:00:12]} 79. Bb7 {[%clk 0:00:14]}  Bb6 {[%clk 0:00:11]} 1/2-1/2


[Site "https://www.chess.com"]

[Event "Titled Tuesday Blitz May 31 Late 2022"]
[White "Koc, Przemyslaw"]
[Black "Rychagov, Andrey"]
[WhiteFideId "1109081"]
[BlackFideId "4119932"]
[WhiteElo "2134"]
[BlackElo "2500"]
[Result "0-1"]
[Round "03"]
[TimeControl "180+1"]
[Date "2022.06.01"]
[WhiteClock "0:01:04"]
[BlackClock "0:00:28"]

1. d4 {[%clk 0:03:00]}  f5 {[%clk 0:02:46]} 2. e4 {[%clk 0:03:00]}  fxe4 {[%clk 0:02:45]} 3. Nc3 {[%clk 0:03:01]}  Nf6 {[%clk 0:02:46]} 4. Bg5 {[%clk 0:02:59]}  g6 {[%clk 0:02:46]} 5. Bc4 {[%clk 0:02:57]}  d5 {[%clk 0:02:31]} 6. Bxf6 {[%clk 0:02:55]}  exf6 {[%clk 0:02:31]} 7. Bxd5 {[%clk 0:02:55]}  f5 {[%clk 0:02:27]} 8. f3 {[%clk 0:02:54]}  Bg7 {[%clk 0:02:10]} 9. Nge2 {[%clk 0:02:53]}  c6 {[%clk 0:02:08]} 10. Bb3 {[%clk 0:02:53]}  exf3 {[%clk 0:02:04]} 11. gxf3 {[%clk 0:02:54]}  Qh4+ {[%clk 0:01:52]} 12. Kf1 {[%clk 0:02:50]}  f4 {[%clk 0:01:44]} 13. Ng1 {[%clk 0:02:51]}  Bh3+ {[%clk 0:01:26]} 14. Nxh3 {[%clk 0:02:50]}  Qxh3+ {[%clk 0:01:27]} 15. Kf2 {[%clk 0:02:51]}  Qh4+ {[%clk 0:01:27]} 16. Kg2 {[%clk 0:02:50]}  Qg5+ {[%clk 0:01:25]} 17. Kf1 {[%clk 0:02:50]}  Nd7 {[%clk 0:01:22]} 18. Qe2+ {[%clk 0:02:45]}  Kd8 {[%clk 0:01:19]} 19. Re1 {[%clk 0:02:44]}  Kc7 {[%clk 0:01:17]} 20. Ne4 {[%clk 0:02:35]}  Qf5 {[%clk 0:01:11]} 21. c3 {[%clk 0:02:28]}  Rae8 {[%clk 0:01:10]} 22. Qg2 {[%clk 0:02:19]}  Nf6 {[%clk 0:01:02]} 23. Kf2 {[%clk 0:02:17]}  Nd5 {[%clk 0:01:00]} 24. Bxd5 {[%clk 0:02:12]}  cxd5 {[%clk 0:01:00]} 25. Rhf1 {[%clk 0:01:30]}  dxe4 {[%clk 0:00:55]} 26. fxe4 {[%clk 0:01:31]}  Qf6 {[%clk 0:00:46]} 27. Kg1 {[%clk 0:01:30]}  g5 {[%clk 0:00:46]} 28. e5 {[%clk 0:01:30]}  Qf5 {[%clk 0:00:46]} 29. Qd5 {[%clk 0:01:27]}  Rd8 {[%clk 0:00:41]} 30. Qc5+ {[%clk 0:01:26]}  Kb8 {[%clk 0:00:41]} 31. a4 {[%clk 0:01:21]}  f3 {[%clk 0:00:38]} 32. Kh1 {[%clk 0:01:20]}  f2 {[%clk 0:00:37]} 33. Re3 {[%clk 0:01:19]}  g4 {[%clk 0:00:35]} 34. a5 {[%clk 0:01:16]}  Bh6 {[%clk 0:00:35]} 35. Rg3 {[%clk 0:01:15]}  Qe4+ {[%clk 0:00:31]} 36. Rg2 {[%clk 0:01:14]}  Be3 {[%clk 0:00:31]} 37. a6 {[%clk 0:01:12]}  h5 {[%clk 0:00:31]} 38. axb7 {[%clk 0:01:11]}  h4 {[%clk 0:00:30]} 39. Ra1 {[%clk 0:01:05]}  f1=Q+ {[%clk 0:00:28]} 40. Rxf1 {[%clk 0:01:04]}  h3 {[%clk 0:00:28]} 0-1


[Site "https://www.chess.com"]

[Event "Titled Tuesday Blitz May 31 Late 2022"]
[White "Korchmar, Vasiliy"]
[Black "Hansen, Eric"]
[WhiteFideId "24131750"]
[BlackFideId "2606771"]
[WhiteElo "2370"]
[BlackElo "2568"]
[Result "0-1"]
[Round "03"]
[TimeControl "180+1"]
[Date "2022.05.31"]
[WhiteClock "0:00:02"]
[BlackClock "0:00:52"]

1. e4 {[%clk 0:03:00]}  c5 {[%clk 0:02:56]} 2. Nf3 {[%clk 0:03:00]}  e6 {[%clk 0:02:56]} 3. g3 {[%clk 0:02:59]}  Nc6 {[%clk 0:02:53]} 4. Bg2 {[%clk 0:02:59]}  e5 {[%clk 0:02:53]} 5. O-O {[%clk 0:02:59]}  Nf6 {[%clk 0:02:54]} 6. Qe2 {[%clk 0:02:54]}  Be7 {[%clk 0:02:54]} 7. Nc3 {[%clk 0:02:53]}  d6 {[%clk 0:02:54]} 8. Nd5 {[%clk 0:02:51]}  O-O {[%clk 0:02:54]} 9. c3 {[%clk 0:02:48]}  h6 {[%clk 0:02:52]} 10. Ne1 {[%clk 0:02:38]}  Re8 {[%clk 0:02:52]} 11. Nc2 {[%clk 0:02:35]}  Nxd5 {[%clk 0:02:46]} 12. exd5 {[%clk 0:02:35]}  Nb8 {[%clk 0:02:47]} 13. d4 {[%clk 0:02:30]}  Nd7 {[%clk 0:02:45]} 14. h3 {[%clk 0:02:12]}  exd4 {[%clk 0:02:43]} 15. cxd4 {[%clk 0:02:12]}  Bf6 {[%clk 0:02:44]} 16. Qd1 {[%clk 0:01:51]}  Qb6 {[%clk 0:02:32]} 17. b3 {[%clk 0:01:08]}  cxd4 {[%clk 0:02:29]} 18. Rb1 {[%clk 0:01:08]}  d3 {[%clk 0:02:20]} 19. Qxd3 {[%clk 0:01:06]}  Ne5 {[%clk 0:02:17]} 20. Qd1 {[%clk 0:01:04]}  Bf5 {[%clk 0:02:17]} 21. Be3 {[%clk 0:00:53]}  Qc7 {[%clk 0:02:14]} 22. Rc1 {[%clk 0:00:53]}  Nd3 {[%clk 0:02:09]} 23. Nd4 {[%clk 0:00:51]}  Nxc1 {[%clk 0:02:09]} 24. Nxf5 {[%clk 0:00:51]}  Nxa2 {[%clk 0:02:10]} 25. Bd4 {[%clk 0:00:38]}  Nc3 {[%clk 0:02:09]} 26. Nxh6+ {[%clk 0:00:28]}  Kf8 {[%clk 0:01:59]} 27. Bxc3 {[%clk 0:00:23]}  Qxc3 {[%clk 0:01:58]} 28. Nf5 {[%clk 0:00:23]}  Rad8 {[%clk 0:01:55]} 29. Qh5 {[%clk 0:00:07]}  g6 {[%clk 0:01:55]} 30. Qh6+ {[%clk 0:00:07]}  Kg8 {[%clk 0:01:49]} 31. Ne3 {[%clk 0:00:07]}  Bg7 {[%clk 0:01:42]} 32. Qh4 {[%clk 0:00:08]}  Qd4 {[%clk 0:01:41]} 33. Ng4 {[%clk 0:00:07]}  f5 {[%clk 0:01:39]} 34. Nh6+ {[%clk 0:00:07]}  Kf8 {[%clk 0:01:22]} 35. g4 {[%clk 0:00:07]}  Bf6 {[%clk 0:01:16]} 36. Qg3 {[%clk 0:00:04]}  f4 {[%clk 0:01:13]} 37. Qf3 {[%clk 0:00:02]}  Bg5 {[%clk 0:01:13]} 38. Nf5 {[%clk 0:00:02]}  gxf5 {[%clk 0:01:13]} 39. gxf5 {[%clk 0:00:03]}  Qg7 {[%clk 0:01:08]} 40. Kh1 {[%clk 0:00:03]}  Re5 {[%clk 0:01:03]} 41. Rg1 {[%clk 0:00:03]}  Rde8 {[%clk 0:01:03]} 42. Bf1 {[%clk 0:00:03]}  Qh6 {[%clk 0:01:01]} 43. Qg4 {[%clk 0:00:04]}  Re1 {[%clk 0:00:58]} 44. Kh2 {[%clk 0:00:03]}  Qh4 {[%clk 0:00:55]} 45. Qg2 {[%clk 0:00:03]}  f3 {[%clk 0:00:52]} 46. Qxf3 {[%clk 0:00:02]}  Qf4+ {[%clk 0:00:52]} 0-1


[Site "https://www.chess.com"]

[Event "Titled Tuesday Blitz May 31 Late 2022"]
[White "Kozin, Yuri"]
[Black "Jovic, Stevan"]
[WhiteFideId "4129920"]
[BlackFideId "923206"]
[WhiteElo "2593"]
[BlackElo "2203"]
[Result "1-0"]
[Round "03"]
[TimeControl "180+1"]
[Date "2022.06.01"]
[WhiteClock "0:00:04"]
[BlackClock "0:00:01"]

1. e4 {[%clk 0:03:00]}  c6 {[%clk 0:02:57]} 2. d4 {[%clk 0:03:00]}  d5 {[%clk 0:02:53]} 3. exd5 {[%clk 0:03:01]}  cxd5 {[%clk 0:02:53]} 4. c4 {[%clk 0:03:02]}  Nf6 {[%clk 0:02:53]} 5. Nc3 {[%clk 0:03:02]}  Nc6 {[%clk 0:02:53]} 6. Bg5 {[%clk 0:03:03]}  dxc4 {[%clk 0:02:53]} 7. d5 {[%clk 0:03:03]}  Ne5 {[%clk 0:02:52]} 8. Qd4 {[%clk 0:03:04]}  h6 {[%clk 0:02:52]} 9. Be3 {[%clk 0:03:04]}  Nd3+ {[%clk 0:02:50]} 10. Bxd3 {[%clk 0:03:04]}  cxd3 {[%clk 0:02:51]} 11. Qxd3 {[%clk 0:03:04]}  g6 {[%clk 0:02:49]} 12. Nf3 {[%clk 0:02:58]}  Bg7 {[%clk 0:02:49]} 13. O-O {[%clk 0:02:57]}  O-O {[%clk 0:02:50]} 14. h3 {[%clk 0:02:55]}  a6 {[%clk 0:02:50]} 15. Rad1 {[%clk 0:02:53]}  b5 {[%clk 0:02:46]} 16. Ne5 {[%clk 0:02:42]}  Bb7 {[%clk 0:02:37]} 17. a3 {[%clk 0:02:33]}  Rc8 {[%clk 0:02:35]} 18. Qd2 {[%clk 0:02:25]}  Kh7 {[%clk 0:02:34]} 19. h4 {[%clk 0:02:20]}  Qd6 {[%clk 0:02:06]} 20. Bf4 {[%clk 0:02:15]}  Nh5 {[%clk 0:01:59]} 21. Nd3 {[%clk 0:02:01]}  Nxf4 {[%clk 0:01:57]} 22. Nxf4 {[%clk 0:02:02]}  Bxc3 {[%clk 0:01:50]} 23. bxc3 {[%clk 0:02:01]}  Qxa3 {[%clk 0:01:48]} 24. Rc1 {[%clk 0:01:49]}  Rcd8 {[%clk 0:01:39]} 25. h5 {[%clk 0:01:47]}  g5 {[%clk 0:01:33]} 26. Qd3+ {[%clk 0:01:38]}  Kg7 {[%clk 0:01:32]} 27. Qd4+ {[%clk 0:01:36]}  Kh7 {[%clk 0:01:26]} 28. Qe4+ {[%clk 0:01:36]}  Kg7 {[%clk 0:01:21]} 29. Qe5+ {[%clk 0:01:34]}  Kh7 {[%clk 0:01:20]} 30. Qf5+ {[%clk 0:01:24]}  Kg7 {[%clk 0:01:18]} 31. Ne6+ {[%clk 0:01:18]}  fxe6 {[%clk 0:01:17]} 32. Qg6+ {[%clk 0:01:19]}  Kh8 {[%clk 0:01:17]} 33. Qxh6+ {[%clk 0:01:19]}  Kg8 {[%clk 0:01:18]} 34. Qxg5+ {[%clk 0:01:13]}  Kh8 {[%clk 0:01:18]} 35. Qh6+ {[%clk 0:01:11]}  Kg8 {[%clk 0:01:18]} 36. Qxe6+ {[%clk 0:01:10]}  Rf7 {[%clk 0:01:14]} 37. Rfd1 {[%clk 0:01:02]}  Qd6 {[%clk 0:01:11]} 38. Qe3 {[%clk 0:00:50]}  Rdf8 {[%clk 0:01:09]} 39. f3 {[%clk 0:00:39]}  Qf4 {[%clk 0:01:05]} 40. Qe6 {[%clk 0:00:34]}  Kh8 {[%clk 0:00:55]} 41. Rc2 {[%clk 0:00:28]}  Qg5 {[%clk 0:00:48]} 42. Rf2 {[%clk 0:00:16]}  Bc8 {[%clk 0:00:28]} 43. Qe4 {[%clk 0:00:12]}  Bf5 {[%clk 0:00:21]} 44. Qe2 {[%clk 0:00:09]}  Bd7 {[%clk 0:00:13]} 45. d6 {[%clk 0:00:09]}  e6 {[%clk 0:00:11]} 46. g4 {[%clk 0:00:07]}  a5 {[%clk 0:00:11]} 47. Rd4 {[%clk 0:00:06]}  a4 {[%clk 0:00:11]} 48. Qe4 {[%clk 0:00:05]}  Rf4 {[%clk 0:00:09]} 49. Qe2 {[%clk 0:00:04]}  Rxd4 {[%clk 0:00:09]} 50. cxd4 {[%clk 0:00:04]}  b4 {[%clk 0:00:08]} 51. Qc4 {[%clk 0:00:04]}  a3 {[%clk 0:00:08]} 52. Qxb4 {[%clk 0:00:04]}  Qc1+ {[%clk 0:00:08]} 53. Kg2 {[%clk 0:00:04]}  Ra8 {[%clk 0:00:07]} 54. Qb7 {[%clk 0:00:04]}  Qc6 {[%clk 0:00:06]} 55. Qb1 {[%clk 0:00:03]}  Qd5 {[%clk 0:00:05]} 56. Ra2 {[%clk 0:00:03]}  Qxd6 {[%clk 0:00:05]} 57. Qa1 {[%clk 0:00:02]}  Kg8 {[%clk 0:00:05]} 58. h6 {[%clk 0:00:03]}  Bc6 {[%clk 0:00:05]} 59. Qc1 {[%clk 0:00:03]}  Bd5 {[%clk 0:00:05]} 60. Qg5+ {[%clk 0:00:04]}  Kf8 {[%clk 0:00:05]} 61. Qg7+ {[%clk 0:00:04]}  Ke8 {[%clk 0:00:05]} 62. h7 {[%clk 0:00:05]}  Qf8 {[%clk 0:00:03]} 63. h8=Q {[%clk 0:00:04]}  Qxh8 {[%clk 0:00:04]} 64. Qxh8+ {[%clk 0:00:03]}  Kd7 {[%clk 0:00:05]} 65. Qg7+ {[%clk 0:00:03]}  Kc6 {[%clk 0:00:05]} 66. Ra1 {[%clk 0:00:01]}  a2 {[%clk 0:00:05]} 67. Qe5 {[%clk 0:00:02]}  Kb5 {[%clk 0:00:05]} 68. Qe2+ {[%clk 0:00:03]}  Kb6 {[%clk 0:00:06]} 69. Qb2+ {[%clk 0:00:04]}  Kc6 {[%clk 0:00:06]} 70. Rc1+ {[%clk 0:00:04]}  Kd7 {[%clk 0:00:06]} 71. Qb5+ {[%clk 0:00:04]}  Ke7 {[%clk 0:00:07]} 72. g5 {[%clk 0:00:03]}  Kf7 {[%clk 0:00:07]} 73. Qc5 {[%clk 0:00:04]}  Kg6 {[%clk 0:00:08]} 74. Qd6 {[%clk 0:00:03]}  a1=Q {[%clk 0:00:08]} 75. Rxa1 {[%clk 0:00:03]}  Rxa1 {[%clk 0:00:07]} 76. Qe5 {[%clk 0:00:04]}  Ra3 {[%clk 0:00:06]} 77. Qf6+ {[%clk 0:00:03]}  Kh7 {[%clk 0:00:06]} 78. Qh6+ {[%clk 0:00:03]}  Kg8 {[%clk 0:00:06]} 79. g6 {[%clk 0:00:03]}  Rxf3 {[%clk 0:00:05]} 80. Qh7+ {[%clk 0:00:02]}  Kf8 {[%clk 0:00:05]} 81. g7+ {[%clk 0:00:03]}  Ke7 {[%clk 0:00:06]} 82. g8=Q+ {[%clk 0:00:04]}  Rf7+ {[%clk 0:00:06]} 83. Kh2 {[%clk 0:00:01]}  Rxh7+ {[%clk 0:00:06]} 84. Qxh7+ {[%clk 0:00:02]}  Kd6 {[%clk 0:00:07]} 85. Qg7 {[%clk 0:00:02]}  Kc6 {[%clk 0:00:08]} 86. Qe5 {[%clk 0:00:03]}  Kb5 {[%clk 0:00:09]} 87. Kg3 {[%clk 0:00:03]}  Kc4 {[%clk 0:00:10]} 88. Kf4 {[%clk 0:00:04]}  Kd3 {[%clk 0:00:10]} 89. Kg5 {[%clk 0:00:05]}  Kc3 {[%clk 0:00:10]} 90. Kf6 {[%clk 0:00:06]}  Kd3 {[%clk 0:00:11]} 91. Ke7 {[%clk 0:00:07]}  Kc4 {[%clk 0:00:12]} 92. Kd6 {[%clk 0:00:08]}  Kd3 {[%clk 0:00:12]} 93. Kc5 {[%clk 0:00:08]}  Kc3 {[%clk 0:00:13]} 94. Qh2 {[%clk 0:00:08]}  Kd3 {[%clk 0:00:14]} 95. Qg3+ {[%clk 0:00:09]}  Ke4 {[%clk 0:00:05]} 96. Kb4 {[%clk 0:00:07]}  Kxd4 {[%clk 0:00:05]} 97. Qf4+ {[%clk 0:00:06]}  Kd3 {[%clk 0:00:05]} 98. Kc5 {[%clk 0:00:06]}  Kc3 {[%clk 0:00:03]} 99. Qd4+ {[%clk 0:00:06]}  Kc2 {[%clk 0:00:03]} 100. Qe3 {[%clk 0:00:06]}  Kd1 {[%clk 0:00:02]} 101. Qf2 {[%clk 0:00:04]}  Bb3 {[%clk 0:00:01]} 102. Kb4 {[%clk 0:00:03]}  Bd5 {[%clk 0:00:01]} 103. Kc3 {[%clk 0:00:04]}  e5 {[%clk 0:00:01]} 104. Qd2# {[%clk 0:00:04]} 1-0


[Site "https://www.chess.com"]

[Event "Titled Tuesday Blitz May 31 Late 2022"]
[White "Kruckenhauser, Arthur"]
[Black "Ladan, Nicholas"]
[WhiteFideId "1642812"]
[BlackFideId "30918855"]
[WhiteElo "2243"]
[BlackElo "2167"]
[Result "1/2-1/2"]
[Round "03"]
[TimeControl "180+1"]
[Date "2022.06.01"]
[WhiteClock "0:00:05"]
[BlackClock "0:00:04"]

1. Nf3 {[%clk 0:03:00]}  d5 {[%clk 0:03:00]} 2. g3 {[%clk 0:03:01]}  Nd7 {[%clk 0:02:59]} 3. Bg2 {[%clk 0:03:02]}  e5 {[%clk 0:02:59]} 4. O-O {[%clk 0:03:02]}  Bd6 {[%clk 0:02:58]} 5. d3 {[%clk 0:03:03]}  Ngf6 {[%clk 0:02:56]} 6. Nbd2 {[%clk 0:03:03]}  O-O {[%clk 0:02:56]} 7. e4 {[%clk 0:03:02]}  c6 {[%clk 0:02:56]} 8. Re1 {[%clk 0:02:57]}  Re8 {[%clk 0:02:55]} 9. c3 {[%clk 0:02:53]}  a5 {[%clk 0:02:52]} 10. Qc2 {[%clk 0:02:52]}  a4 {[%clk 0:02:50]} 11. Nh4 {[%clk 0:02:46]}  Nc5 {[%clk 0:02:41]} 12. Nf1 {[%clk 0:02:29]}  Bf8 {[%clk 0:02:28]} 13. Be3 {[%clk 0:02:26]}  dxe4 {[%clk 0:02:16]} 14. dxe4 {[%clk 0:02:25]}  Qd3 {[%clk 0:02:16]} 15. Rac1 {[%clk 0:02:13]}  Qxc2 {[%clk 0:02:10]} 16. Rxc2 {[%clk 0:02:13]}  Be6 {[%clk 0:02:11]} 17. a3 {[%clk 0:02:10]}  Bb3 {[%clk 0:01:53]} 18. Rd2 {[%clk 0:02:10]}  Ncxe4 {[%clk 0:01:52]} 19. Bxe4 {[%clk 0:02:10]}  Nxe4 {[%clk 0:01:53]} 20. Rd7 {[%clk 0:02:10]}  Nc5 {[%clk 0:01:46]} 21. Bxc5 {[%clk 0:02:08]}  Bxc5 {[%clk 0:01:47]} 22. Rxb7 {[%clk 0:02:08]}  f6 {[%clk 0:01:44]} 23. Nf5 {[%clk 0:02:07]}  Bf8 {[%clk 0:01:43]} 24. Nd2 {[%clk 0:02:05]}  Be6 {[%clk 0:01:39]} 25. Ne3 {[%clk 0:02:04]}  Reb8 {[%clk 0:01:36]} 26. Rxb8 {[%clk 0:02:01]}  Rxb8 {[%clk 0:01:36]} 27. Nec4 {[%clk 0:01:50]}  Rd8 {[%clk 0:01:33]} 28. f4 {[%clk 0:01:50]}  Bc5+ {[%clk 0:01:29]} 29. Kg2 {[%clk 0:01:49]}  Bd5+ {[%clk 0:01:12]} 30. Kh3 {[%clk 0:01:49]}  exf4 {[%clk 0:01:12]} 31. gxf4 {[%clk 0:01:50]}  Kf7 {[%clk 0:01:09]} 32. Kg3 {[%clk 0:01:37]}  h5 {[%clk 0:01:06]} 33. h4 {[%clk 0:01:37]}  Rh8 {[%clk 0:01:01]} 34. Ne4 {[%clk 0:01:34]}  Bxe4 {[%clk 0:00:34]} 35. Rxe4 {[%clk 0:01:33]}  Rd8 {[%clk 0:00:32]} 36. Re2 {[%clk 0:01:19]}  Rd1 {[%clk 0:00:27]} 37. Na5 {[%clk 0:01:15]}  Rg1+ {[%clk 0:00:25]} 38. Rg2 {[%clk 0:01:14]}  Rxg2+ {[%clk 0:00:20]} 39. Kxg2 {[%clk 0:01:14]}  Be3 {[%clk 0:00:21]} 40. f5 {[%clk 0:00:35]}  Bc1 {[%clk 0:00:21]} 41. Nc4 {[%clk 0:00:34]}  g6 {[%clk 0:00:20]} 42. fxg6+ {[%clk 0:00:32]}  Kxg6 {[%clk 0:00:21]} 43. Kf3 {[%clk 0:00:32]}  Kf5 {[%clk 0:00:21]} 44. Nd6+ {[%clk 0:00:24]}  Ke5 {[%clk 0:00:18]} 45. Nc4+ {[%clk 0:00:24]}  Kd5 {[%clk 0:00:14]} 46. Nb6+ {[%clk 0:00:23]}  Kc5 {[%clk 0:00:11]} 47. Nxa4+ {[%clk 0:00:22]}  Kb5 {[%clk 0:00:10]} 48. b3 {[%clk 0:00:23]}  Bxa3 {[%clk 0:00:09]} 49. Ke4 {[%clk 0:00:23]}  c5 {[%clk 0:00:09]} 50. c4+ {[%clk 0:00:09]}  Kb4 {[%clk 0:00:09]} 51. Kf5 {[%clk 0:00:09]}  Kxb3 {[%clk 0:00:09]} 52. Nb6 {[%clk 0:00:09]}  Bb2 {[%clk 0:00:07]} 53. Kg6 {[%clk 0:00:10]}  Be5 {[%clk 0:00:06]} 54. Kxh5 {[%clk 0:00:10]}  Bc7 {[%clk 0:00:06]} 55. Nd5 {[%clk 0:00:11]}  Bd8 {[%clk 0:00:06]} 56. Ne3 {[%clk 0:00:11]}  f5 {[%clk 0:00:04]} 57. Nxf5 {[%clk 0:00:02]}  Bxh4 {[%clk 0:00:02]} 58. Kg4 {[%clk 0:00:03]}  Kxc4 {[%clk 0:00:03]} 59. Nxh4 {[%clk 0:00:03]}  Kd3 {[%clk 0:00:03]} 60. Nf3 {[%clk 0:00:03]}  c4 {[%clk 0:00:03]} 61. Ne5+ {[%clk 0:00:04]}  Kd4 {[%clk 0:00:04]} 62. Nxc4 {[%clk 0:00:05]} 1/2-1/2


[Site "https://www.chess.com"]

[Event "Titled Tuesday Blitz May 31 Late 2022"]
[White "Leiva, Gianmarco"]
[Black "Mortazavi, Ali"]
[WhiteFideId "3804399"]
[BlackFideId "401323"]
[WhiteElo "2323"]
[BlackElo "2339"]
[Result "0-1"]
[Round "03"]
[TimeControl "180+1"]
[Date "2022.06.01"]
[WhiteClock "0:00:39"]
[BlackClock "0:00:33"]

1. Nf3 {[%clk 0:03:00]}  Nf6 {[%clk 0:02:59]} 2. g3 {[%clk 0:03:01]}  g6 {[%clk 0:02:59]} 3. Bg2 {[%clk 0:03:02]}  Bg7 {[%clk 0:03:00]} 4. O-O {[%clk 0:03:03]}  O-O {[%clk 0:03:01]} 5. d4 {[%clk 0:03:03]}  d6 {[%clk 0:03:02]} 6. c4 {[%clk 0:03:04]}  Nbd7 {[%clk 0:03:02]} 7. Nc3 {[%clk 0:03:04]}  e5 {[%clk 0:03:03]} 8. e4 {[%clk 0:03:05]}  c6 {[%clk 0:03:04]} 9. Re1 {[%clk 0:03:03]}  Qa5 {[%clk 0:03:05]} 10. h3 {[%clk 0:03:03]}  exd4 {[%clk 0:03:05]} 11. Nxd4 {[%clk 0:03:03]}  Ne5 {[%clk 0:03:06]} 12. Bf1 {[%clk 0:03:03]}  Qb6 {[%clk 0:03:06]} 13. Nc2 {[%clk 0:02:54]}  Nh5 {[%clk 0:02:57]} 14. Be3 {[%clk 0:02:54]}  Qxb2 {[%clk 0:02:06]} 15. Na4 {[%clk 0:02:54]}  Nf3+ {[%clk 0:02:06]} 16. Kh1 {[%clk 0:02:33]}  Qf6 {[%clk 0:02:05]} 17. e5 {[%clk 0:01:25]}  dxe5 {[%clk 0:01:53]} 18. Re2 {[%clk 0:01:26]}  Be6 {[%clk 0:01:53]} 19. Nc5 {[%clk 0:01:16]}  Rad8 {[%clk 0:01:44]} 20. Qc1 {[%clk 0:01:14]}  Bxc4 {[%clk 0:01:41]} 21. Bg5 {[%clk 0:01:15]}  Nxg5 {[%clk 0:01:34]} 22. Re3 {[%clk 0:01:06]}  Qxf2 {[%clk 0:01:22]} 23. Bxc4 {[%clk 0:01:04]}  Rd2 {[%clk 0:01:22]} 24. Qg1 {[%clk 0:00:57]}  Qxg1+ {[%clk 0:01:22]} 25. Rxg1 {[%clk 0:00:57]}  Rxc2 {[%clk 0:01:22]} 26. Ne4 {[%clk 0:00:57]}  Rxc4 {[%clk 0:01:04]} 27. Nxg5 {[%clk 0:00:56]}  Bh6 {[%clk 0:01:04]} 28. h4 {[%clk 0:00:55]}  f6 {[%clk 0:01:04]} 29. Re4 {[%clk 0:00:50]}  Rxe4 {[%clk 0:00:56]} 30. Nxe4 {[%clk 0:00:51]}  f5 {[%clk 0:00:47]} 31. Nd6 {[%clk 0:00:51]}  Rd8 {[%clk 0:00:45]} 32. Nxb7 {[%clk 0:00:51]}  Rd2 {[%clk 0:00:45]} 33. Na5 {[%clk 0:00:44]}  Be3 {[%clk 0:00:44]} 34. Rg2 {[%clk 0:00:43]}  Rd1+ {[%clk 0:00:43]} 35. Kh2 {[%clk 0:00:43]}  c5 {[%clk 0:00:38]} 36. Nc6 {[%clk 0:00:43]}  Bd4 {[%clk 0:00:34]} 37. Nxa7 {[%clk 0:00:41]}  Nf6 {[%clk 0:00:34]} 38. a4 {[%clk 0:00:39]}  Ng4+ {[%clk 0:00:33]} 0-1


[Site "https://www.chess.com"]